[Event "Titled Tuesday Blitz October 11 Early 2022"]
[White "Orzech, Dominik"]
[Black "Chernobay, Artem"]
[WhiteFideId "1115065"]
[BlackFideId "4167406"]
[WhiteElo "2272"]
[BlackElo "2473"]
[Result "1-0"]
[Round "06"]
[TimeControl "180+1"]
[Date "2022.10.12"]
[WhiteClock "0:01:12"]
[BlackClock "0:00:51"]

1. Nf3 {[%clk 0:02:50]}  Nf6 {[%clk 0:02:57]} 2. c4 {[%clk 0:02:51]}  d6 {[%clk 0:02:57]} 3. Nc3 {[%clk 0:02:50]}  e5 {[%clk 0:02:57]} 4. d4 {[%clk 0:02:50]}  Nbd7 {[%clk 0:02:55]} 5. g3 {[%clk 0:02:47]}  g6 {[%clk 0:02:52]} 6. Bg2 {[%clk 0:02:46]}  Bg7 {[%clk 0:02:53]} 7. O-O {[%clk 0:02:46]}  O-O {[%clk 0:02:53]} 8. e4 {[%clk 0:02:46]}  c6 {[%clk 0:02:52]} 9. h3 {[%clk 0:02:44]}  a5 {[%clk 0:02:45]} 10. Re1 {[%clk 0:02:41]}  Re8 {[%clk 0:02:43]} 11. Be3 {[%clk 0:02:38]}  exd4 {[%clk 0:02:40]} 12. Nxd4 {[%clk 0:02:37]}  Nc5 {[%clk 0:02:40]} 13. Qc2 {[%clk 0:02:33]}  Nfd7 {[%clk 0:02:31]} 14. Rad1 {[%clk 0:02:30]}  a4 {[%clk 0:02:26]} 15. f4 {[%clk 0:02:23]}  Qa5 {[%clk 0:02:21]} 16. Bf2 {[%clk 0:02:21]}  Qb4 {[%clk 0:02:12]} 17. Nb1 {[%clk 0:02:16]}  Nb6 {[%clk 0:02:06]} 18. Bf1 {[%clk 0:02:10]}  Bd7 {[%clk 0:01:54]} 19. Re3 {[%clk 0:02:05]}  Re7 {[%clk 0:01:45]} 20. Be1 {[%clk 0:01:56]}  Qxe1 {[%clk 0:01:23]} 21. Rexe1 {[%clk 0:01:54]}  Rae8 {[%clk 0:01:23]} 22. Bg2 {[%clk 0:01:51]}  f5 {[%clk 0:01:21]} 23. Nf3 {[%clk 0:01:44]}  fxe4 {[%clk 0:01:18]} 24. Ng5 {[%clk 0:01:40]}  Nd3 {[%clk 0:01:17]} 25. Rxe4 {[%clk 0:01:37]}  Nxb2 {[%clk 0:01:12]} 26. Rxe7 {[%clk 0:01:35]}  Rxe7 {[%clk 0:01:12]} 27. Rxd6 {[%clk 0:01:34]}  N2xc4 {[%clk 0:01:10]} 28. Rd3 {[%clk 0:01:26]}  Bf5 {[%clk 0:01:08]} 29. Rd8+ {[%clk 0:01:23]}  Bf8 {[%clk 0:01:08]} 30. Qc3 {[%clk 0:01:19]}  Re3 {[%clk 0:00:51]} 31. Qf6 {[%clk 0:01:12]} 1-0


[Site "https://www.chess.com"]

[Event "Titled Tuesday Blitz October 11 Early 2022"]
[White "Ovezdurdyyeva, Jemal"]
[Black "Gulevich, Artem"]
[WhiteFideId "14001888"]
[BlackFideId "24119580"]
[WhiteElo "1961"]
[BlackElo "2218"]
[Result "0-1"]
[Round "06"]
[TimeControl "180+1"]
[Date "2022.10.12"]
[WhiteClock "0:00:20"]
[BlackClock "0:00:25"]

1. e4 {[%clk 0:03:00]}  c5 {[%clk 0:02:59]} 2. Nf3 {[%clk 0:02:59]}  Nc6 {[%clk 0:03:00]} 3. c3 {[%clk 0:02:59]}  Nf6 {[%clk 0:03:00]} 4. Bd3 {[%clk 0:02:58]}  e6 {[%clk 0:02:57]} 5. O-O {[%clk 0:02:56]}  d5 {[%clk 0:02:57]} 6. exd5 {[%clk 0:02:54]}  Nxd5 {[%clk 0:02:58]} 7. Bc2 {[%clk 0:02:53]}  Be7 {[%clk 0:02:58]} 8. d4 {[%clk 0:02:49]}  cxd4 {[%clk 0:02:59]} 9. cxd4 {[%clk 0:02:47]}  O-O {[%clk 0:02:56]} 10. Nc3 {[%clk 0:02:46]}  Ncb4 {[%clk 0:02:49]} 11. Be4 {[%clk 0:02:42]}  Nf6 {[%clk 0:02:48]} 12. Bb1 {[%clk 0:02:39]}  b6 {[%clk 0:02:45]} 13. Bg5 {[%clk 0:02:32]}  Bb7 {[%clk 0:02:42]} 14. a3 {[%clk 0:02:31]}  Nbd5 {[%clk 0:02:42]} 15. Qd3 {[%clk 0:02:26]}  g6 {[%clk 0:02:28]} 16. Re1 {[%clk 0:02:20]}  Rc8 {[%clk 0:02:22]} 17. Ne5 {[%clk 0:02:16]}  Nxc3 {[%clk 0:02:10]} 18. bxc3 {[%clk 0:02:15]}  Qd5 {[%clk 0:02:10]} 19. f3 {[%clk 0:02:06]}  Rfd8 {[%clk 0:02:01]} 20. Qd2 {[%clk 0:02:00]}  Qa5 {[%clk 0:00:52]} 21. Re3 {[%clk 0:01:05]}  Nd5 {[%clk 0:00:36]} 22. Bxe7 {[%clk 0:01:04]}  Nxe7 {[%clk 0:00:36]} 23. Ba2 {[%clk 0:00:45]}  Bd5 {[%clk 0:00:30]} 24. Rd3 {[%clk 0:00:22]}  Bxa2 {[%clk 0:00:26]} 25. Rxa2 {[%clk 0:00:21]}  Nc6 {[%clk 0:00:26]} 26. Qf4 {[%clk 0:00:20]}  Nxe5 {[%clk 0:00:25]} 0-1


[Site "https://www.chess.com"]

[Event "Titled Tuesday Blitz October 11 Early 2022"]
[White "Parpiev, Isaak"]
[Black "Zaksaite, Salomeja"]
[WhiteFideId "34281576"]
[BlackFideId "12801496"]
[WhiteElo "2100"]
[BlackElo "2094"]
[Result "1-0"]
[Round "06"]
[TimeControl "180+1"]
[Date "2022.10.12"]
[WhiteClock "0:00:03"]
[BlackClock "0:00:01"]

1. d4 {[%clk 0:02:55]}  Nf6 {[%clk 0:02:58]} 2. c4 {[%clk 0:02:55]}  g6 {[%clk 0:02:58]} 3. Nc3 {[%clk 0:02:53]}  d5 {[%clk 0:02:57]} 4. cxd5 {[%clk 0:02:50]}  Nxd5 {[%clk 0:02:57]} 5. e4 {[%clk 0:02:49]}  Nxc3 {[%clk 0:02:56]} 6. bxc3 {[%clk 0:02:50]}  Bg7 {[%clk 0:02:57]} 7. Be3 {[%clk 0:02:48]}  c5 {[%clk 0:02:56]} 8. Bc4 {[%clk 0:02:45]}  Nc6 {[%clk 0:02:51]} 9. Ne2 {[%clk 0:02:44]}  O-O {[%clk 0:02:51]} 10. O-O {[%clk 0:02:44]}  Bg4 {[%clk 0:02:47]} 11. f3 {[%clk 0:02:44]}  Bd7 {[%clk 0:02:47]} 12. Rc1 {[%clk 0:02:38]}  Na5 {[%clk 0:02:43]} 13. Bd3 {[%clk 0:02:34]}  c4 {[%clk 0:02:43]} 14. Bc2 {[%clk 0:02:31]}  b5 {[%clk 0:02:43]} 15. d5 {[%clk 0:02:27]}  e6 {[%clk 0:02:42]} 16. d6 {[%clk 0:02:22]}  Nb7 {[%clk 0:02:40]} 17. f4 {[%clk 0:02:12]}  e5 {[%clk 0:02:39]} 18. f5 {[%clk 0:02:11]}  Bc6 {[%clk 0:02:31]} 19. Ng3 {[%clk 0:02:00]}  Qxd6 {[%clk 0:02:29]} 20. Qf3 {[%clk 0:01:24]}  f6 {[%clk 0:02:18]} 21. Qg4 {[%clk 0:01:17]}  Bd7 {[%clk 0:02:10]} 22. Rcd1 {[%clk 0:01:14]}  Qc7 {[%clk 0:02:10]} 23. h4 {[%clk 0:00:34]}  Nc5 {[%clk 0:01:59]} 24. Rxd7 {[%clk 0:00:26]}  Nxd7 {[%clk 0:01:53]} 25. fxg6 {[%clk 0:00:26]}  f5 {[%clk 0:00:45]} 26. gxh7+ {[%clk 0:00:19]}  Kh8 {[%clk 0:00:44]} 27. Nxf5 {[%clk 0:00:19]}  Nf6 {[%clk 0:00:44]} 28. Qg6 {[%clk 0:00:12]}  Qf7 {[%clk 0:00:39]} 29. Qg3 {[%clk 0:00:05]}  Rae8 {[%clk 0:00:22]} 30. h5 {[%clk 0:00:05]}  Nxh7 {[%clk 0:00:16]} 31. h6 {[%clk 0:00:04]}  Bf6 {[%clk 0:00:16]} 32. Ng7 {[%clk 0:00:03]}  Bxg7 {[%clk 0:00:11]} 33. Rxf7 {[%clk 0:00:03]}  Rxf7 {[%clk 0:00:10]} 34. hxg7+ {[%clk 0:00:03]}  Rxg7 {[%clk 0:00:10]} 35. Qh3 {[%clk 0:00:03]}  Reg8 {[%clk 0:00:09]} 36. Bd1 {[%clk 0:00:03]}  Rg3 {[%clk 0:00:07]} 37. Qe6 {[%clk 0:00:01]}  Rxe3 {[%clk 0:00:03]} 38. Qxe5+ {[%clk 0:00:02]}  Rg7 {[%clk 0:00:04]} 39. Qe8+ {[%clk 0:00:02]}  Rg8 {[%clk 0:00:03]} 40. Qe5+ {[%clk 0:00:02]}  Rg7 {[%clk 0:00:04]} 41. Bh5 {[%clk 0:00:01]}  Re1+ {[%clk 0:00:03]} 42. Kh2 {[%clk 0:00:01]}  Ra1 {[%clk 0:00:02]} 43. Qe8+ {[%clk 0:00:01]}  Rg8 {[%clk 0:00:02]} 44. Qe5+ {[%clk 0:00:02]}  Rg7 {[%clk 0:00:02]} 45. Qb8+ {[%clk 0:00:03]}  Rg8 {[%clk 0:00:03]} 46. Qxa7 {[%clk 0:00:03]}  Nf6 {[%clk 0:00:02]} 47. Qd4 {[%clk 0:00:03]}  Kg7 {[%clk 0:00:01]} 48. Bf3 {[%clk 0:00:03]}  Rh8+ {[%clk 0:00:01]} 49. Kg3 {[%clk 0:00:04]}  Rxa2 {[%clk 0:00:02]} 50. e5 {[%clk 0:00:03]}  Ne8 {[%clk 0:00:02]} 51. e6+ {[%clk 0:00:03]}  Kg8 {[%clk 0:00:02]} 52. Qg4+ {[%clk 0:00:02]}  Kf8 {[%clk 0:00:02]} 53. Qf5+ {[%clk 0:00:03]}  Kg8 {[%clk 0:00:01]} 54. Qf7# {[%clk 0:00:03]} 1-0


[Site "https://www.chess.com"]

[Event "Titled Tuesday Blitz October 11 Early 2022"]
[White "Piesik, Piotr"]
[Black "Tologon tegin, Semetei"]
[WhiteFideId "1136194"]
[BlackFideId "13800574"]
[WhiteElo "2323"]
[BlackElo "2282"]
[Result "1-0"]
[Round "06"]
[TimeControl "180+1"]
[Date "2022.10.12"]
[WhiteClock "0:00:15"]
[BlackClock "0:00:03"]

1. Nf3 {[%clk 0:02:20]}  Nf6 {[%clk 0:02:55]} 2. g3 {[%clk 0:02:20]}  g6 {[%clk 0:02:55]} 3. Bg2 {[%clk 0:02:21]}  Bg7 {[%clk 0:02:55]} 4. O-O {[%clk 0:02:22]}  O-O {[%clk 0:02:55]} 5. d4 {[%clk 0:02:22]}  d6 {[%clk 0:02:54]} 6. Nbd2 {[%clk 0:02:22]}  Nc6 {[%clk 0:02:50]} 7. e4 {[%clk 0:02:22]}  e5 {[%clk 0:02:49]} 8. dxe5 {[%clk 0:02:23]}  dxe5 {[%clk 0:02:49]} 9. c3 {[%clk 0:02:23]}  Qe7 {[%clk 0:02:44]} 10. b4 {[%clk 0:02:20]}  a6 {[%clk 0:02:32]} 11. a4 {[%clk 0:02:19]}  Be6 {[%clk 0:02:25]} 12. Qe2 {[%clk 0:02:19]}  Nd7 {[%clk 0:02:21]} 13. Ba3 {[%clk 0:02:18]}  Ncb8 {[%clk 0:01:50]} 14. Nc4 {[%clk 0:02:07]}  b5 {[%clk 0:01:38]} 15. Ne3 {[%clk 0:01:55]}  c6 {[%clk 0:01:32]} 16. c4 {[%clk 0:01:55]}  bxa4 {[%clk 0:01:08]} 17. b5 {[%clk 0:01:52]}  Nc5 {[%clk 0:00:53]} 18. b6 {[%clk 0:01:40]}  Nbd7 {[%clk 0:00:49]} 19. Rab1 {[%clk 0:01:30]}  Rab8 {[%clk 0:00:48]} 20. b7 {[%clk 0:01:21]}  Rfd8 {[%clk 0:00:35]} 21. Rfd1 {[%clk 0:01:18]}  Qe8 {[%clk 0:00:30]} 22. Rd6 {[%clk 0:01:09]}  Nxe4 {[%clk 0:00:29]} 23. Rd3 {[%clk 0:01:02]}  Ndc5 {[%clk 0:00:22]} 24. Rxd8 {[%clk 0:01:01]}  Qxd8 {[%clk 0:00:21]} 25. Ng5 {[%clk 0:00:59]}  Nc3 {[%clk 0:00:19]} 26. Qb2 {[%clk 0:00:54]}  Nxb1 {[%clk 0:00:19]} 27. Bxc5 {[%clk 0:00:53]}  Qxg5 {[%clk 0:00:18]} 28. Bd6 {[%clk 0:00:49]}  Rxb7 {[%clk 0:00:15]} 29. Qxb7 {[%clk 0:00:49]}  Qf5 {[%clk 0:00:11]} 30. Be4 {[%clk 0:00:43]}  Qh3 {[%clk 0:00:08]} 31. Qb8+ {[%clk 0:00:32]}  Bc8 {[%clk 0:00:08]} 32. Qxb1 {[%clk 0:00:32]}  h5 {[%clk 0:00:07]} 33. Bxc6 {[%clk 0:00:25]}  Qe6 {[%clk 0:00:07]} 34. Qb8 {[%clk 0:00:23]}  Kh7 {[%clk 0:00:06]} 35. Bd5 {[%clk 0:00:23]}  Qd7 {[%clk 0:00:06]} 36. c5 {[%clk 0:00:22]}  a3 {[%clk 0:00:05]} 37. c6 {[%clk 0:00:21]}  Qh3 {[%clk 0:00:05]} 38. Bxa3 {[%clk 0:00:18]}  Bd7 {[%clk 0:00:02]} 39. cxd7 {[%clk 0:00:17]}  Qxd7 {[%clk 0:00:03]} 40. Qd6 {[%clk 0:00:16]}  Qa4 {[%clk 0:00:03]} 41. h4 {[%clk 0:00:15]}  a5 {[%clk 0:00:02]} 42. Bxf7 {[%clk 0:00:15]}  Qb5 {[%clk 0:00:02]} 43. Qxg6+ {[%clk 0:00:14]}  Kh8 {[%clk 0:00:02]} 44. Qxh5+ {[%clk 0:00:14]}  Bh6 {[%clk 0:00:03]} 45. Qxh6# {[%clk 0:00:15]} 1-0


[Site "https://www.chess.com"]

[Event "Titled Tuesday Blitz October 11 Early 2022"]
[White "Poltorak, Sebastian"]
[Black "Munkhgal, Gombosuren"]
[WhiteFideId "1199498"]
[BlackFideId "4901266"]
[WhiteElo "2232"]
[BlackElo "2576"]
[Result "0-1"]
[Round "06"]
[TimeControl "180+1"]
[Date "2022.10.12"]
[WhiteClock "0:00:15"]
[BlackClock "0:01:58"]

1. d4 {[%clk 0:03:00]}  Nf6 {[%clk 0:03:00]} 2. c4 {[%clk 0:03:00]}  g6 {[%clk 0:03:00]} 3. f3 {[%clk 0:02:58]}  Bg7 {[%clk 0:03:00]} 4. e4 {[%clk 0:02:58]}  d6 {[%clk 0:03:00]} 5. Ne2 {[%clk 0:02:58]}  O-O {[%clk 0:03:00]} 6. Be3 {[%clk 0:02:58]}  Nc6 {[%clk 0:02:59]} 7. Qd2 {[%clk 0:02:54]}  a6 {[%clk 0:02:59]} 8. Nbc3 {[%clk 0:02:52]}  Na5 {[%clk 0:03:00]} 9. Ng3 {[%clk 0:02:48]}  b5 {[%clk 0:02:59]} 10. cxb5 {[%clk 0:02:48]}  axb5 {[%clk 0:03:00]} 11. Rc1 {[%clk 0:02:02]}  b4 {[%clk 0:02:57]} 12. Nd1 {[%clk 0:02:01]}  Rb8 {[%clk 0:02:48]} 13. Be2 {[%clk 0:01:58]}  Be6 {[%clk 0:02:47]} 14. d5 {[%clk 0:01:57]}  Bd7 {[%clk 0:02:46]} 15. O-O {[%clk 0:01:57]}  c5 {[%clk 0:02:43]} 16. dxc6 {[%clk 0:01:55]}  Nxc6 {[%clk 0:02:44]} 17. b3 {[%clk 0:01:53]}  Qa5 {[%clk 0:02:41]} 18. Bc4 {[%clk 0:01:44]}  Ne5 {[%clk 0:02:40]} 19. Be2 {[%clk 0:01:38]}  Bb5 {[%clk 0:02:38]} 20. Bxb5 {[%clk 0:01:26]}  Qxb5 {[%clk 0:02:39]} 21. Nb2 {[%clk 0:01:25]}  Rfc8 {[%clk 0:02:32]} 22. Bd4 {[%clk 0:01:21]}  Nfd7 {[%clk 0:02:29]} 23. f4 {[%clk 0:01:17]}  Ng4 {[%clk 0:02:28]} 24. Nc4 {[%clk 0:01:13]}  Bxd4+ {[%clk 0:02:23]} 25. Qxd4 {[%clk 0:01:12]}  Qc5 {[%clk 0:02:23]} 26. Rfd1 {[%clk 0:00:56]}  Qxd4+ {[%clk 0:02:20]} 27. Rxd4 {[%clk 0:00:57]}  Nc5 {[%clk 0:02:21]} 28. h3 {[%clk 0:00:53]}  Nf6 {[%clk 0:02:19]} 29. e5 {[%clk 0:00:51]}  Ne6 {[%clk 0:02:17]} 30. exf6 {[%clk 0:00:37]}  Nxd4 {[%clk 0:02:16]} 31. fxe7 {[%clk 0:00:38]}  d5 {[%clk 0:02:10]} 32. Rd1 {[%clk 0:00:24]}  dxc4 {[%clk 0:02:08]} 33. Rxd4 {[%clk 0:00:24]}  c3 {[%clk 0:02:08]} 34. Ne2 {[%clk 0:00:23]}  Re8 {[%clk 0:02:07]} 35. Rd7 {[%clk 0:00:23]}  Rbc8 {[%clk 0:02:06]} 36. Kf2 {[%clk 0:00:23]}  f5 {[%clk 0:02:06]} 37. a3 {[%clk 0:00:17]}  bxa3 {[%clk 0:02:05]} 38. Ra7 {[%clk 0:00:17]}  Kf7 {[%clk 0:02:01]} 39. Rxa3 {[%clk 0:00:17]}  Rxe7 {[%clk 0:02:02]} 40. Ra2 {[%clk 0:00:16]}  c2 {[%clk 0:02:02]} 41. Nc1 {[%clk 0:00:17]}  Rd7 {[%clk 0:02:01]} 42. Ke2 {[%clk 0:00:17]}  Rd1 {[%clk 0:02:01]} 43. Ra1 {[%clk 0:00:18]}  Rg1 {[%clk 0:02:01]} 44. g4 {[%clk 0:00:17]}  Rd8 {[%clk 0:01:59]} 45. b4 {[%clk 0:00:14]}  Rdd1 {[%clk 0:02:00]} 46. Ra7+ {[%clk 0:00:12]}  Ke8 {[%clk 0:01:59]} 47. Nb3 {[%clk 0:00:13]}  c1=Q {[%clk 0:01:59]} 48. Nxc1 {[%clk 0:00:13]}  Rxc1 {[%clk 0:01:59]} 49. gxf5 {[%clk 0:00:14]}  gxf5 {[%clk 0:01:59]} 50. Rxh7 {[%clk 0:00:15]}  Rg3 {[%clk 0:01:58]} 51. Rh5 {[%clk 0:00:15]}  Rc2+ {[%clk 0:01:58]} 52. Kd1 {[%clk 0:00:15]}  Rh2 {[%clk 0:01:58]} 0-1


[Site "https://www.chess.com"]

[Event "Titled Tuesday Blitz October 11 Early 2022"]
[White "Rodriguez Santiago, Jaime"]
[Black "Manon-og, Ramon Jr."]
[WhiteFideId "3100898"]
[BlackFideId "5200776"]
[WhiteElo "2025"]
[BlackElo "2232"]
[Result "1-0"]
[Round "06"]
[TimeControl "180+1"]
[Date "2022.10.12"]
[WhiteClock "0:01:03"]
[BlackClock "0:00:24"]

1. c4 {[%clk 0:03:00]}  Nf6 {[%clk 0:02:54]} 2. Nc3 {[%clk 0:03:00]}  g6 {[%clk 0:02:52]} 3. g3 {[%clk 0:02:59]}  Bg7 {[%clk 0:02:51]} 4. Bg2 {[%clk 0:03:00]}  O-O {[%clk 0:02:52]} 5. e4 {[%clk 0:03:00]}  d6 {[%clk 0:02:53]} 6. Nge2 {[%clk 0:03:00]}  c5 {[%clk 0:02:53]} 7. O-O {[%clk 0:03:00]}  Nc6 {[%clk 0:02:54]} 8. d3 {[%clk 0:03:00]}  Bg4 {[%clk 0:02:53]} 9. f3 {[%clk 0:03:00]}  Be6 {[%clk 0:02:52]} 10. Rb1 {[%clk 0:02:59]}  Qd7 {[%clk 0:02:52]} 11. Nf4 {[%clk 0:02:56]}  Nd4 {[%clk 0:02:49]} 12. Nce2 {[%clk 0:02:52]}  Nc6 {[%clk 0:02:35]} 13. Nxe6 {[%clk 0:02:51]}  fxe6 {[%clk 0:02:35]} 14. Be3 {[%clk 0:02:49]}  e5 {[%clk 0:02:35]} 15. h3 {[%clk 0:02:47]}  Nd4 {[%clk 0:02:34]} 16. Nxd4 {[%clk 0:02:46]}  cxd4 {[%clk 0:02:35]} 17. Bd2 {[%clk 0:02:45]}  Nh5 {[%clk 0:02:33]} 18. Kh2 {[%clk 0:02:41]}  Rac8 {[%clk 0:02:23]} 19. b4 {[%clk 0:02:40]}  b5 {[%clk 0:02:22]} 20. cxb5 {[%clk 0:02:23]}  Qxb5 {[%clk 0:02:23]} 21. Qb3+ {[%clk 0:02:22]}  Kh8 {[%clk 0:02:13]} 22. a4 {[%clk 0:02:22]}  Qd7 {[%clk 0:02:05]} 23. b5 {[%clk 0:02:20]}  Rc7 {[%clk 0:02:00]} 24. a5 {[%clk 0:02:19]}  Rfc8 {[%clk 0:01:59]} 25. Rfc1 {[%clk 0:02:13]}  Rb8 {[%clk 0:01:41]} 26. b6 {[%clk 0:02:09]}  axb6 {[%clk 0:01:38]} 27. axb6 {[%clk 0:02:10]}  Rcb7 {[%clk 0:01:38]} 28. Ba5 {[%clk 0:02:05]}  Bh6 {[%clk 0:01:27]} 29. Rc2 {[%clk 0:02:01]}  Rc8 {[%clk 0:01:16]} 30. Rxc8+ {[%clk 0:02:00]}  Qxc8 {[%clk 0:01:17]} 31. Rb2 {[%clk 0:01:59]}  Qa8 {[%clk 0:00:57]} 32. Qb5 {[%clk 0:01:50]}  Be3 {[%clk 0:00:54]} 33. Rc2 {[%clk 0:01:46]}  Qf8 {[%clk 0:00:38]} 34. Rc7 {[%clk 0:01:37]}  Rb8 {[%clk 0:00:37]} 35. Qd7 {[%clk 0:01:32]}  Nxg3 {[%clk 0:00:33]} 36. Qxe7 {[%clk 0:01:32]}  Nf1+ {[%clk 0:00:30]} 37. Bxf1 {[%clk 0:01:08]}  Qf4+ {[%clk 0:00:28]} 38. Kg2 {[%clk 0:01:05]}  Qg5+ {[%clk 0:00:23]} 39. Qxg5 {[%clk 0:01:03]}  Bxg5 {[%clk 0:00:24]} 40. b7 {[%clk 0:01:03]} 1-0


[Site "https://www.chess.com"]

[Event "Titled Tuesday Blitz October 11 Early 2022"]
[White "Rosenberg, Evan S"]
[Black "Asavasaetakul, Chawit"]
[WhiteFideId "2019299"]
[BlackFideId "6204856"]
[WhiteElo "2422"]
[BlackElo "1919"]
[Result "0-1"]
[Round "06"]
[TimeControl "180+1"]
[Date "2022.10.12"]
[WhiteClock "0:00:01"]
[BlackClock "0:00:41"]

1. d4 {[%clk 0:03:00]}  d5 {[%clk 0:02:59]} 2. Nf3 {[%clk 0:02:59]}  c6 {[%clk 0:03:00]} 3. c3 {[%clk 0:02:54]}  Nf6 {[%clk 0:03:00]} 4. Qc2 {[%clk 0:02:53]}  Bg4 {[%clk 0:02:59]} 5. Ne5 {[%clk 0:02:53]}  Bh5 {[%clk 0:03:00]} 6. Qf5 {[%clk 0:02:51]}  Nbd7 {[%clk 0:02:47]} 7. Qh3 {[%clk 0:02:48]}  Rg8 {[%clk 0:02:11]} 8. g4 {[%clk 0:02:25]}  Bg6 {[%clk 0:02:09]} 9. Nxg6 {[%clk 0:01:15]}  hxg6 {[%clk 0:02:09]} 10. g5 {[%clk 0:01:13]}  Nh5 {[%clk 0:02:08]} 11. Bg2 {[%clk 0:01:03]}  e5 {[%clk 0:02:08]} 12. Bf3 {[%clk 0:00:41]}  Rh8 {[%clk 0:02:06]} 13. Qg4 {[%clk 0:00:33]}  Bd6 {[%clk 0:02:02]} 14. h4 {[%clk 0:00:30]}  Qe7 {[%clk 0:02:00]} 15. e3 {[%clk 0:00:29]}  O-O-O {[%clk 0:01:56]} 16. a4 {[%clk 0:00:29]}  Kb8 {[%clk 0:01:56]} 17. a5 {[%clk 0:00:28]}  exd4 {[%clk 0:01:56]} 18. cxd4 {[%clk 0:00:28]}  a6 {[%clk 0:01:56]} 19. Nc3 {[%clk 0:00:27]}  Nf4 {[%clk 0:01:46]} 20. Kd2 {[%clk 0:00:24]}  Ne6 {[%clk 0:01:45]} 21. Kc2 {[%clk 0:00:22]}  Bb4 {[%clk 0:01:45]} 22. Bd2 {[%clk 0:00:22]}  Ka7 {[%clk 0:01:44]} 23. Ra4 {[%clk 0:00:16]}  Rc8 {[%clk 0:01:42]} 24. Rha1 {[%clk 0:00:14]}  Ka8 {[%clk 0:01:25]} 25. Kb1 {[%clk 0:00:13]}  Bd6 {[%clk 0:01:20]} 26. Ne2 {[%clk 0:00:11]}  f5 {[%clk 0:01:12]} 27. gxf6 {[%clk 0:00:11]}  Nxf6 {[%clk 0:01:13]} 28. Qxg6 {[%clk 0:00:10]}  Rxh4 {[%clk 0:01:12]} 29. Nc1 {[%clk 0:00:10]}  Rh2 {[%clk 0:01:08]} 30. Nd3 {[%clk 0:00:09]}  Rch8 {[%clk 0:01:00]} 31. Kc2 {[%clk 0:00:09]}  R8h6 {[%clk 0:00:57]} 32. Qg1 {[%clk 0:00:09]}  Ne4 {[%clk 0:00:56]} 33. Bxe4 {[%clk 0:00:08]}  dxe4 {[%clk 0:00:57]} 34. Ne5 {[%clk 0:00:08]}  Bxe5 {[%clk 0:00:57]} 35. dxe5 {[%clk 0:00:08]}  Nc5 {[%clk 0:00:54]} 36. Rd4 {[%clk 0:00:07]}  Qxe5 {[%clk 0:00:53]} 37. Ra3 {[%clk 0:00:06]}  Nd3 {[%clk 0:00:53]} 38. Raxd3 {[%clk 0:00:06]}  exd3+ {[%clk 0:00:54]} 39. Kxd3 {[%clk 0:00:06]}  Qf5+ {[%clk 0:00:54]} 40. Kc3 {[%clk 0:00:06]}  Rxf2 {[%clk 0:00:51]} 41. Qxg7 {[%clk 0:00:07]}  Qf6 {[%clk 0:00:46]} 42. Qg8+ {[%clk 0:00:05]}  Ka7 {[%clk 0:00:45]} 43. Qb3 {[%clk 0:00:06]}  Rh8 {[%clk 0:00:41]} 44. Qb6+ {[%clk 0:00:06]}  Ka8 {[%clk 0:00:42]} 45. Kc2 {[%clk 0:00:05]}  Qf5+ {[%clk 0:00:41]} 46. Kb3 {[%clk 0:00:04]}  Qb5+ {[%clk 0:00:41]} 47. Qxb5 {[%clk 0:00:04]}  axb5 {[%clk 0:00:42]} 48. Bc3 {[%clk 0:00:04]}  Re8 {[%clk 0:00:41]} 49. e4 {[%clk 0:00:03]}  Re2 {[%clk 0:00:41]} 50. Rd7 {[%clk 0:00:02]}  R2xe4 {[%clk 0:00:42]} 51. Bd4 {[%clk 0:00:02]}  Kb8 {[%clk 0:00:42]} 52. a6 {[%clk 0:00:02]}  bxa6 {[%clk 0:00:42]} 53. Bb6 {[%clk 0:00:01]}  R4e7 {[%clk 0:00:41]} 0-1


[Site "https://www.chess.com"]

[Event "Titled Tuesday Blitz October 11 Early 2022"]
[White "Rosh Jain"]
[Black "Ziatdinov, Raset"]
[WhiteFideId "25789465"]
[BlackFideId "2015323"]
[WhiteElo "2233"]
[BlackElo "2220"]
[Result "1-0"]
[Round "06"]
[TimeControl "180+1"]
[Date "2022.10.12"]
[WhiteClock "0:01:08"]
[BlackClock "0:00:47"]

1. e4 {[%clk 0:02:53]}  c5 {[%clk 0:03:00]} 2. Nf3 {[%clk 0:02:50]}  Nc6 {[%clk 0:03:00]} 3. d4 {[%clk 0:02:49]}  cxd4 {[%clk 0:03:01]} 4. Nxd4 {[%clk 0:02:49]}  g6 {[%clk 0:03:02]} 5. Nc3 {[%clk 0:02:45]}  Bg7 {[%clk 0:03:01]} 6. Be3 {[%clk 0:02:44]}  d6 {[%clk 0:03:01]} 7. Qd2 {[%clk 0:02:40]}  Nf6 {[%clk 0:02:59]} 8. f3 {[%clk 0:02:35]}  O-O {[%clk 0:02:58]} 9. O-O-O {[%clk 0:02:27]}  Bd7 {[%clk 0:02:57]} 10. Bc4 {[%clk 0:02:26]}  Rc8 {[%clk 0:02:56]} 11. Bb3 {[%clk 0:02:25]}  Nxd4 {[%clk 0:02:56]} 12. Bxd4 {[%clk 0:02:25]}  b5 {[%clk 0:02:56]} 13. h4 {[%clk 0:02:23]}  a5 {[%clk 0:02:50]} 14. h5 {[%clk 0:02:19]}  Nxh5 {[%clk 0:02:40]} 15. Bxg7 {[%clk 0:01:18]}  Kxg7 {[%clk 0:01:55]} 16. g4 {[%clk 0:01:10]}  Nf6 {[%clk 0:01:03]} 17. Qh6+ {[%clk 0:01:08]}  Kg8 {[%clk 0:01:02]} 18. g5 {[%clk 0:01:07]}  Nh5 {[%clk 0:00:56]} 19. Rxh5 {[%clk 0:01:06]}  gxh5 {[%clk 0:00:57]} 20. g6 {[%clk 0:01:05]}  hxg6 {[%clk 0:00:46]} 21. Qxg6+ {[%clk 0:01:06]}  Kh8 {[%clk 0:00:47]} 22. Qxh5+ {[%clk 0:01:07]}  Kg7 {[%clk 0:00:47]} 23. Qg5+ {[%clk 0:01:08]} 1-0


[Site "https://www.chess.com"]